Cogmind - Beta 13 X1 @@@ ROGUE MODE // 2023.09.10 @ 01:01:12 Player: Runia Result: Destroyed by 8R-AWN with 8R-AWN's Boregun Performance ------------- Evolutions (1) 500 Regions Visited (5) 1000 Robots Destroyed (78) 390 Value Destroyed (1635) 1635 Prototype IDs (29) 580 Alien Tech Used (0) 0 Bonus (302) 302 TOTAL SCORE: 4407 Bonus ------- High Alert Combat Kills 2 Aligned with FarCom 300 Cogmind --------- Core Integrity 0/400 Matter 300/300 Energy 37/100 System Corruption 3% Temperature Cool (0) Movement Treading (320) Ox2 Location -9/Exiles Parts ------- > --- POWER (1) -------- (None) > --- PROPULSION (2) --- Light Treads Light Treads > --- UTILITY (4) ------ Improved Heat Sink Huge Storage Unit Improved Utility Shielding > --- WEAPON (2) ------- Heavy Assault Rifle Minigun > --- INVENTORY (25) --- Light Treads Wheel Wheel Improved Heat Sink Hacking Suite High-powered Tractor Beam Assault Rifle Assault Rifle Assault Rifle Assault Rifle Heavy Assault Rifle Makeshift Hammer Peak State ------------ > --- POWER ------------ Improved Ion Engine > --- PROPULSION ------- Light Treads Wheel > --- UTILITY ---------- Improved Heat Sink Huge Storage Unit Improved Utility Shielding Shield Generator > --- WEAPON ----------- Guided Plasma Cannon > --- INVENTORY -------- Nuclear Core Reinforced Deuterium Engine Fission Core Light Treads Light Treads Light Treads Light Treads Wheel Improved Heat Sink High-capacity Matter Pod Hacking Suite High-powered Tractor Beam Assault Rifle Assault Rifle Assault Rifle Assault Rifle Heavy Assault Rifle Heavy Assault Rifle Heavy Assault Rifle Minigun Makeshift Hammer [Rating: 25] Favorites ----------- Power Light Nuclear Core Engine Light Ion Engine Power Core Light Nuclear Core Propulsion Light Treads Treads Light Treads Leg Aluminum Leg Wheel Wheel Utility Huge Storage Unit Device Improved Heat Sink Storage Huge Storage Unit Processor Targeting Computer Protection Improved Utility Shielding Weapon Heavy Assault Rifle Energy Gun Medium Laser Energy Cannon Guided Plasma Cannon Ballistic Gun Heavy Assault Rifle Ballistic Cannon Light Cannon Launcher Rocket Launcher Special Weapon Mining Laser Build | -11 -10 -10 -9 -9 -9 ------- Run | Jun Mat Min Mat Min Exi Slots Evolved 2 | . . . 2 . . Power . | . . . . . . Propulsion . | . . . . . . Utility 2 | . . . 2 . . Weapon . | . . . . . . Parts Attached 77 | 4 14 6 26 20 7 Power 8 | 1 3 1 2 1 . Engine 6 | 1 3 . 1 1 . Core 2 | . . 1 1 . . Reactor . | . . . . . . Propulsion 24 | 2 4 1 9 5 3 Treads 13 | 2 . . 6 2 3 Leg 3 | . 2 1 . . . Wheel 8 | . 2 . 3 3 . Hover . | . . . . . . Flight . | . . . . . . Utility 12 | . 3 1 5 3 . Device 6 | . 2 1 2 1 . Storage 1 | . 1 . . . . Processor 1 | . . . 1 . . Hackware . | . . . . . . Protection 4 | . . . 2 2 . Artifact . | . . . . . . Weapon 33 | 1 4 3 10 11 4 Energy Gun 8 | . 3 2 3 . . Energy Cannon 1 | . . . . . 1 Ballistic Gun 16 | 1 . . 6 6 3 Ballistic Cannon 3 | . 1 1 . 1 . Launcher 4 | . . . 1 3 . Special Weapon 1 | . . . . 1 . Impact Weapon . | . . . . . . Slashing Weapon . | . . . . . . Piercing Weapon . | . . . . . . Special Melee Weapon . | . . . . . . Unidentified Prototypes 1 | . . . 1 . . Parts Lost 29 | . 7 2 4 11 5 Power 6 | . 2 1 1 1 1 Propulsion 9 | . 2 . 1 4 2 Utility 7 | . . 1 2 3 1 Weapon 7 | . 3 . . 3 1 Highest Loss Streak 5 | . 4 2 2 4 5 To Critical Strikes 2 | . . . . . 2 Average Slot Usage (%) 90 | . 86 99 97 95 78 Engine 8 | . 13 12 . 10 10 Core 3 | . . . 10 . . Treads 9 | . 11 . 9 11 11 Leg 2 | . 5 14 . . . Wheel 11 | . 10 14 11 9 10 Device 16 | . 11 14 16 16 21 Storage 11 | . 14 14 11 11 11 Processor 2 | . . . 4 5 . Protection 6 | . . . 10 7 11 Energy Gun 8 | . 15 28 8 . . Ballistic Gun 8 | . 1 . 13 20 1 Naked Turns . | . . . . . . Heaviest Build 102 | 13 88 91 100 101 102 Greatest Support 40 | 40 40 16 20 40 10 Greatest Overweight (x) 10 | . 8 5 9 9 10 Average Overweight (x) 6 | . 5 5 6 6 9 Largest Inventory Capacity 25 | 8 25 25 25 25 25 Average Capacity 23 | 8 20 25 25 25 25 Most Carried 25 | 6 17 20 25 25 23 Average Carried 17 | 4 9 15 22 19 20 Final Capacity 25 | 8 25 25 25 25 25 Final Carried 25 | 5 14 20 25 17 12 Class Distribution -------------------- 63% | Scavenger-Mutant 36% | Mutant Dominant Class ---------------- Mutant | -10/Materials Mutant | -10/Mines Scavenger-Mutant | -9/Materials Scavenger-Mutant | -9/Mines Scavenger-Mutant | -9/Exiles Resources | -11 -10 -10 -9 -9 -9 ----------- Run | Jun Mat Min Mat Min Exi Matter Collected 2006 | 252 253 59 759 498 185 Remotely 147 | . . . 147 . . Salvage Created 2951 | 187 769 272 1211 423 89 Parts 171 | 13 37 13 82 26 . Haulers Intercepted 6 | . 2 . 4 . . Recyclers Shooed 7 | 2 . . 3 2 . Parts Field Recycled . | . . . . . . Retrieved Matter . | . . . . . . Parts Self-Destructed . | . . . . . . Prevented . | . . . . . . Kills | -11 -10 -10 -9 -9 -9 ------- Run | Jun Mat Min Mat Min Exi Combat Hostiles Destroyed 66 | . 11 6 21 23 5 Melee 1 | . 1 . . . . Guns 52 | . 10 6 20 16 . Cannons 5 | . . . . . 5 AOE 8 | . . . 1 7 . Classes Destroyed 11 | 3 4 . 3 1 . Worker 7 | 2 2 1 1 1 . Builder 4 | . 3 . 1 . . Tunneler 2 | 2 . . . . . Hauler 6 | . 2 . 4 . . Recycler 5 | 1 1 . 2 1 . Operator 1 | . 1 . . . . Watcher 2 | . . . 2 . . Swarmer 17 | . . . 7 10 . Grunt 27 | . 11 6 7 3 . Sentry 7 | . . . 7 . . Assembled 15 | . . . . 10 5 Best Kill Streak 5 | 5 5 4 5 5 5 Combat Bots Only 5 | . 3 4 4 5 5 Max Kills in Single Turn 4 | 1 1 1 2 4 1 Gunslinging 1 | . . . 1 . . Exploded 4 | . . . 1 4 . Melee 1 | . 1 . . . . Uniques/NPCs Destroyed . | . . . . . . Combat | -11 -10 -10 -9 -9 -9 -------- Run | Jun Mat Min Mat Min Exi Damage Taken 3765 | . 903 175 847 895 945 Core 568 | . 151 12 128 33 244 Absorbed by Shields 178 | . . . . 59 119 Redirected to Shielding 75 | . . . . 14 61 Core Remaining (%) 67 | 100 . 34 . . . Volleys Fired 303 | 40 76 19 86 54 28 Largest 2 | 1 2 2 2 2 2 Hottest 120 | 40 100 113 113 100 120 Shots Fired 494 | 40 119 36 154 101 44 Gun 470 | 40 119 35 153 91 32 Cannon 16 | . . 1 . 3 12 Launcher 6 | . . . 1 5 . Special 2 | . . . . 2 . Kinetic 263 | 14 21 1 101 94 32 Thermal 173 | 13 59 35 52 2 12 Explosive 6 | . . . 1 5 . Electromagnetic 52 | 13 39 . . . . Robot Hit Streak 19 | 4 11 11 18 19 13 Robot Miss Streak 5 | 2 3 1 5 3 1 Penetration Max . | . . . . . . Secondary Targets 8 | . 1 3 4 . . Max Gunslinging Chain 1 | . 1 1 1 . . Shots Hit Robots 303 | 12 78 25 103 56 29 Core Hits 147 | 7 34 11 47 39 9 Critical Kills . | . . . . . . Critical Parts Destroyed 1 | . . . . 1 . Critical Strikes 6 | 1 1 1 1 1 1 Burn 3 | . 1 1 1 . . Destroy 2 | . . . . 1 1 Corrupt 1 | 1 . . . . . Melee Attacks . | . . . . . . Impact . | . . . . . . Slashing . | . . . . . . Piercing . | . . . . . . Sneak Attacks . | . . . . . . Combat Hostiles . | . . . . . . Follow-up Attacks . | . . . . . . Damage Inflicted 5312 | 142 1050 359 1688 1258 815 Guns 4290 | 142 970 359 1568 836 415 Cannons 439 | . . . . 39 400 Explosions 576 | . 73 . 120 383 . Melee . | . . . . . . Ramming 7 | . 7 . . . . Kinetic 2430 | 69 95 . 976 875 415 Thermal 1929 | 10 568 359 592 . 400 Explosive 503 | . . . 120 383 . Electromagnetic 443 | 63 380 . . . . Impact . | . . . . . . Slashing . | . . . . . . Piercing . | . . . . . . Highest Corruption 3 | . . . . 3 3 Average Corruption 3 | . . . . 3 3 Corruption Purged . | . . . . . . Corruption Blocked . | . . . . . . Effects 22 | . . . . 5 17 Message Errors 10 | . . . . 1 9 Matter Fused 2 | . . . . 1 1 Heat Flow Errors 2 | . . . . . 2 Energy Discharges 2 | . . . . 1 1 Data Loss (minor) 3 | . . . . 1 2 Data Loss (major) 3 | . . . . 1 2 Overload Shots . | . . . . . . Overflow Damage 57 | . 18 . . 2 37 Projectiles 37 | . . . . . 37 Explosions 20 | . 18 . . 2 . Melee . | . . . . . . Knockbacks 2 | . 1 . . 1 . Impact 1 | . 1 . . . . Kinetic 1 | . . . . 1 . Secondary . | . . . . . . Self-Inflicted Damage 100 | . 40 . . 60 . Shots 4 | . 1 . . 3 . Rammed 6 | . 6 . . . . Targets Rammed 6 | . 6 . . . . Kicked . | . . . . . . Crushed . | . . . . . . Highest Temperature 336 | . 316 95 221 . 336 Average Temperature 95 | . 119 37 60 . 148 Received Heat Transfer 1080 | . 567 99 303 111 . Effects 3 | . 3 . . . . Energy Bleed 1 | . 1 . . . . Interference 1 | . 1 . . . . Damage (minor) 1 | . 1 . . . . Siege Activations . | . . . . . . Robots Corrupted . | . . . . . . Combat Hostiles . | . . . . . . Parts Fried 1 | . 1 . . . . Impact Corruptions . | . . . . . . Robots Melted 1 | . . . 1 . . Combat Hostiles . | . . . . . . Parts Melted 11 | . 3 5 3 . . Heat Transferred 4810 | 25 1500 999 1406 . 880 Parts Sabotaged . | . . . . . . Parts Stolen . | . . . . . . Parts Stripped . | . . . . . . Power Chain Reactions 1 | . 1 . . . . Missiles Intercepted . | . . . . . . Alert | -11 -10 -10 -9 -9 -9 ------- Run | Jun Mat Min Mat Min Exi Peak Influence 403 | 25 169 70 335 403 . Initial 130 | . 16 15 27 130 . Average 122 | 5 60 19 151 230 . Maximum Alert Level 2 | . . . 1 2 . Low Security (%) 75 | 100 100 100 64 46 . Level 1 23 | . . . 35 52 . Level 2 . | . . . . . . Level 3 . | . . . . . . Level 4 . | . . . . . . Level 5 . | . . . . . . High Security . | . . . . . . Max Security . | . . . . . . Squads Dispatched 7 | . 3 3 1 . . Investigation 3 | . 2 1 . . . Extermination . | . . . . . . Reinforcement 2 | . 1 . 1 . . Assault 2 | . . 2 . . . Garrison . | . . . . . . Intercept . | . . . . . . Searches Triggered . | . . . . . . Construction Impeded . | . . . . . . Haulers Reinforced . | . . . . . . Active Scanning Responses . | . . . . . . Cargo Convoy Interrupts . | . . . . . . Stealth | -11 -10 -10 -9 -9 -9 --------- Run | Jun Mat Min Mat Min Exi Distress Signals 6 | . 4 . 2 . . Communications Jammed . | . . . . . . Distress Signals . | . . . . . . Times Spotted 117 | . 21 12 44 32 8 Peak Tracking Total 10 | . 5 4 6 5 10 Tactical Retreats 6 | . 1 . 2 2 1 Traps | -11 -10 -10 -9 -9 -9 ------- Run | Jun Mat Min Mat Min Exi Traps Triggered 2 | . 1 . 1 . . Indirectly . | . . . . . . Trap Hack Attempts . | . . . . . . Triggered . | . . . . . . Disarmed . | . . . . . . Reprogrammed . | . . . . . . Reused . | . . . . . . Traps Extracted . | . . . . . . Installed . | . . . . . . Triggered 1 | . 1 . . . . Machines | -11 -10 -10 -9 -9 -9 ---------- Run | Jun Mat Min Mat Min Exi Machines Disabled 3 | . 1 . . . 2 Max in Single Turn 1 | . 1 . . . 1 Machines Repaired . | . . . . . . Machines Sabotaged . | . . . . . . Overloaded Fab Kills . | . . . . . . Hacking | -11 -10 -10 -9 -9 -9 --------- Run | Jun Mat Min Mat Min Exi Machines Accessed 13 | . 5 1 5 . 2 Terminals 7 | . 4 . 3 . . Fabricators . | . . . . . . Repair Stations 1 | . . . 1 . . Recycling Units 2 | . 1 . 1 . . Scanalyzers . | . . . . . . Garrison Access . | . . . . . . Total Hacks 34 | . 15 1 16 . 2 Successful 20 | . 6 1 11 . 2 Failed 14 | . 9 . 5 . . Catastrophic 1 | . 1 . . . . Database Lockouts . | . . . . . . Manual 9 | . 4 . 4 . 1 Terminals 24 | . 13 . 11 . . Fabricators . | . . . . . . Repair Stations 3 | . . . 3 . . Recycling Units 4 | . 2 . 2 . . Scanalyzers . | . . . . . . Garrison Access . | . . . . . . Terminal Hacks 13 | . 4 1 6 . 2 Record 2 | . . . 1 . 1 Prototype ID Bank 3 | . 1 . 2 . . Open Door 1 | . . 1 . . . Terminal Index 1 | . . . 1 . . Locate Traps 1 | . 1 . . . . Reinforcement Status 1 | . . . 1 . . Zone Layout 3 | . 2 . 1 . . Derelict Proto ID Bank 1 | . . . . . 1 Fabricator Hacks . | . . . . . . Repair Station Hacks 1 | . . . 1 . . Scan Component 1 | . . . 1 . . Recycling Unit Hacks 2 | . 1 . 1 . . Retrieve Components 2 | . 1 . 1 . . Scanalyzer . | . . . . . . Garrison Access Hacks . | . . . . . . Unauthorized Hacks 4 | . 1 . 3 . . Terminals 3 | . 1 . 2 . . Botnet 1 | . . . 1 . . Operators 2 | . 1 . 1 . . Fabricators . | . . . . . . Repair Stations . | . . . . . . Recycling Units 1 | . . . 1 . . Reject 1 | . . . 1 . . Scanalyzers . | . . . . . . Garrison Access . | . . . . . . Data Cores Recovered . | . . . . . . Used . | . . . . . . Hacking Detections 8 | . 5 . 3 . . Full Trace Events . | . . . . . . Feedback Events . | . . . . . . Feedback Blocked . | . . . . . . Robot Schematics Acquired . | . . . . . . Robots Built . | . . . . . . Authchips . | . . . . . . Time . | . . . . . . Total Robot Build Rating . | . . . . . . Part Schematics Acquired . | . . . . . . Parts Built . | . . . . . . Authchips . | . . . . . . Time . | . . . . . . Total Part Build Rating . | . . . . . . Parts Repaired . | . . . . . . Time . | . . . . . . Parts Recycled . | . . . . . . Recycled Matter . | . . . . . . Retrieved Matter . | . . . . . . Retrieved Components 8 | . . . 8 . . Parts Scanalyzed . | . . . . . . Part Schematics Acquired . | . . . . . . Parts Damaged . | . . . . . . Bothacking | -11 -10 -10 -9 -9 -9 ------------ Run | Jun Mat Min Mat Min Exi Used RIF Installer . | . . . . . . Robots Hacked . | . . . . . . Non-combat . | . . . . . . Combat . | . . . . . . Robot Hacks Applied . | . . . . . . Relay Couplers Released . | . . . . . . Fabnet Peak Effective % . | . . . . . . Robots Rewired . | . . . . . . Allies Hacked . | . . . . . . Hacks Repelled . | . . . . . . Allies | -11 -10 -10 -9 -9 -9 -------- Run | Jun Mat Min Mat Min Exi Total Allies 1 | . . 1 . . . Largest Group 1 | . . 1 . . . Highest-Rated Group 31 | . . 31 . . . Highest-Rated Ally 31 | . . 31 . . . Total Orders . | . . . . . . Ally Attacks 3 | . . 3 . . . Total Damage 43 | . . 43 . . . Kills . | . . . . . . Allies Corrupted . | . . . . . . Allies Melted . | . . . . . . Intel | -11 -10 -10 -9 -9 -9 ------- Run | Jun Mat Min Mat Min Exi Robot Analysis Total . | . . . . . . Derelict Logs Recovered 1 | . . 1 . . . Drone Launches . | . . . . . . Drone Recoveries . | . . . . . . Exploration | -11 -10 -10 -9 -9 -9 ------------- Run | Jun Mat Min Mat Min Exi Turns Passed 6265 | 104 1324 620 1947 938 1332 Spaces Moved 2650 | 13 558 310 836 364 569 Core . | . . . . . . Treads 167 | 13 127 . . 27 . Legs . | . . . . . . Wheels 2483 | . 431 310 836 337 569 Hover . | . . . . . . Flight . | . . . . . . Fastest Speed 140 | 160 160 175 140 175 215 Average Speed 194 | 160 184 175 190 201 215 Slowest Speed 480 | 160 480 175 215 320 230 Overloaded Moves . | . . . . . . Propulsion Burnouts . | . . . . . . Robots Hopped . | . . . . . . Cave-ins Triggered . | . . . . . . Exploration Rate (%) 59 | 3 87 64 64 66 70 Regions Visited 5 Branch Regions 3 Pre-discovered Areas 1 | . . . . . 1 Known Exits Taken . | . . . . . . Unknown Exits Taken 5 | 1 1 1 1 1 . Scrap Searched 2 | . . . . 2 . Spaces Dug 38 | . . . . 38 . Terrain Destroyed 72 | . 5 . 12 55 . Melee . | . . . . . . Projectile 2 | . . . . 2 . AOE 70 | . 5 . 12 53 . Terrain Rammed . | . . . . . . Walls Destroyed . | . . . . . . Machines Disabled . | . . . . . . Actions | -11 -10 -10 -9 -9 -9 --------- Run | Jun Mat Min Mat Min Exi Total 3267 | 59 712 349 1048 460 639 Wait 131 | . 39 10 43 18 21 Move 2645 | 12 557 309 835 363 569 Hop . | . . . . . . Pick Up 59 | 1 15 5 29 4 5 Fast Attach 11 | . 4 1 6 . . Attach 36 | 2 5 1 11 11 6 Detach 3 | . . . 1 . 2 Swap 30 | 2 5 4 9 9 1 Drop 43 | 2 5 . 28 1 7 Fire 303 | 40 76 19 86 54 28 Melee . | . . . . . . Ram . | . . . . . . Kick . | . . . . . . Crush 6 | . 6 . . . . Escape Stasis . | . . . . . . Rewire . | . . . . . . Trap . | . . . . . . Miscellaneous . | . . . . . . Route ------- -11/Junkyard -10/Materials (discovered 4 exits: *Mat x2 / *Min x2) -10/Mines -9/Materials (discovered 3 exits: [*Mat x2] / [*Min]) -9/Mines (discovered 2 exits: [*Mat] / *Exi) -9/Exiles (discovered 1 exit: [*Min]) History --------- Turn | Location | Event 52 | -11/Junkyard | Discovered new exit (range 2) 105 | -11/Junkyard | Entered Materials 308 | -10/Materials | Build established: Mutant 320 | -10/Materials | Lost 4 parts (1p1n2w) 477 | -10/Materials | Discovered new exit (range 17) 701 | -10/Materials | Core integrity fell below 50% 898 | -10/Materials | Discovered new exit (range 16) 1026 | -10/Materials | Discovered new exit (range 13) 1139 | -10/Materials | Discovered new exit (range 15) 1429 | -10/Materials | Entered Mines 1471 | -10/Mines | Learned Materials terminal intel 1884 | -10/Mines | Met a Derelict shopkeep closing up shop 1968 | -10/Mines | Met a Derelict testing a Signal Generator 2010 | -10/Mines | Discovered new exit (range 8) 2049 | -10/Mines | Entered Materials 2049 | -9/Materials | Evolved 2 slots: Utility x2 2050 | -9/Materials | Loaded intel: 11 terminal locations 2407 | -9/Materials | Build established: Scavenger-Mutant 2681 | -9/Materials | Discovered new exit (range 9) 3058 | -9/Materials | Discovered new exit (range 14) 3240 | -9/Materials | Discovered new exit (range 16) 3996 | -9/Materials | Entered Mines 4020 | -9/Mines | Met a Derelict bent on vengeance 4067 | -9/Mines | Discovered new exit (range 5) 4154 | -9/Mines | Assembled infested the area 4308 | -9/Mines | A weapon hastily lodged in a ceiling crevice suddenly fell to the ground 4511 | -9/Mines | Lost 4 parts (1n1u2w) 4923 | -9/Mines | Deemed a non-threat by the Exiles lab entrance 4925 | -9/Mines | Discovered new exit (range 5) 4934 | -9/Mines | Entered Exiles 4989 | -9/Exiles | Met 8R-AWN 5024 | -9/Exiles | Met EX-HEX 5105 | -9/Exiles | Met EX-DEC 5146 | -9/Exiles | Learned location of Zion (-6) 5193 | -9/Exiles | Met EX-BIN 5217 | -9/Exiles | Aligned with FarCom system 5219 | -9/Exiles | Given EX-Vault access code 5279 | -9/Exiles | Opened EX-Vault 5290 | -9/Exiles | Found XL Autogun Array 5334 | -9/Exiles | Warned to stay clear of 0b10 Research branches 5493 | -9/Exiles | Discovered new exit (range 14) 5981 | -9/Exiles | Found Gui. Plasma Cannon 6126 | -9/Exiles | Attacked by the Exiles 6167 | -9/Exiles | Core integrity fell below 50% 6235 | -9/Exiles | Core integrity fell below 20% 6266 | -9/Exiles | Destroyed by 8R-AWN with 8R-AWN's Boregun Last Messages --------------- 06248_ Penetrated by HV Slug. 06251_ Extracted 10 matter. 06252_ Penetrated by HV Slug. 06253_ Extracted 7 matter. 06254_ Penetrated by HV Slug. 06254_ Shield Generator destroyed. 06256_ Extracted 7 matter. 06257_ HV Slug penetrates Wall. 06257_ Penetrated by HV Slug. 06259_ Extracted 7 matter. 06259_ Penetrated by HV Slug. 06261_ Destroyed Prototype Protection. 06262_ Extracted 7 matter. 06262_ HV Slug penetrates Machine. 06262_ HV Slug penetrates Wall. 06262_ Penetrated by HV Slug. 06262_ Hvy. Assault Rifle destroyed. 06265_ Extracted 10 matter. 06266_ Extracted 7 matter. 06266_ Penetrated by HV Slug. Map ----- +----------------------------------------------------+ | ?????????????????????????????????????????????????? | | ?????????????????????????????????????????????????? | | ?????????#####???????????????????????????????????? | | ????????## ##??????????????????????????????????? | | ????????# #??????????????????????????????????? | | ????????# < #??????????????????????????????????? | | ????????# ###????????????????????????????????? | | ????????# #????????????????????????????????? | | ????????# ##????????????????????????????????? | | ????????## #?????????????????????????????????? | | ?????????# ##????????????????????????????????? | | ?????????## #????????????#######?????????????? | | ??????????# #######??????#!!! "#?????????????? | | ??????????# #""##?????# "#?????????????? | | ??????????## #?????# "#?????????????? | | ???????????##" ##???## ""#????????????## | | ???????????#"" #####" " #???????????? | | ???????????#### ##" "#????????????" | | ??????????????## #"" #?????????????"" | | ???????????????#"## #????????????#"" | | ???????????????####### ##???????????#"" | | ?????????????????????### "#???????????? | | ???????????????########" ###???????????" | | ???????????????# !!""""" % ##??????????# | | ???????????????#! g ###" %% """###???### | | ???????????????#! @ #?##" % ""#####X# | | ???????????????#! ##??#" % | | ???????????????# !""""""#;#???#"# | | ???????????????######;### #???#### | | ????????????????????#???# #??????### [ | | ????????????????????????# #????????### % | | ????????????????????????# #??????????#" | | ????????????????????????# #???????????## | | ????????????????????????# #????????????##" | | ????????????????????????? ??????????????#""" | | ????????????????????????? ?????????????##" | | ????????????????????????? ?????????????#"" | | ????????????????????????? ?????????????#""" | | ????????????????????????? ?????????????""" | | ????????????????????????? ????????????#""" | | ????????????????????????? ????????????#"" | | ??????????????????????????????????????#""" | | ??????????????????????????????????????#"" | | ??????????????????????????????????????##"" | | ???????????????????????????????????????#"""" | | ???????????????????????????????????????## | | ????????????????????????????????????????#" | | ????????????????????????????????????????#"""" | | ????????????????????????????????????????#"" | | ?????????????????????????????????????????" | +----------------------------------------------------+ Best States ------------- Heat Dissipation 42 Energy Generation 14 Energy Capacity 280 Matter Stores 300 Matter Capacity 300 Sight Range 16 Terrain Scan Density 10 Armor Coverage 150 Utility Shielding 66 Evasion (%) 40 Targeting Accuracy 5 Recoil Reduction 2 Particle Charging 15 Item Schematics ----------------- None Robot Schematics ------------------ None Fabricated ------------ Nothing Alien Tech Used ----------------- None Achievements -------------- None Challenges ------------ None Game ------ Seed TargetingSpectralBrace Manual? 0 Play Time 00:37:14 Cumulative 853.7 hours Start 2023.09.10 @ 00:24:17 End 2023.09.10 @ 01:01:12 Sessions 1 Manual Loads 0 Difficulty Rogue Special Mode None Game No. 731 Rogue 731 Adventurer 0 Explorer 0 Win Type - Total 44 Types 15/8/9/1/1/1/7/1/1 Lore% 93 Gallery% 96 Achievement% 82 Wizard Run 0 Options --------- ASCII 0 Keyboard 0 Movement Mouse Keybinds 1 Fullscreen 2 Font 24/Smallcaps Map View 76x50 Tactical HUD 1 Map Filters NONE Filters NONE Steam 1 RUN: d35d3332-96da-4e12-819e-35c797df20a6